fUSD/lending_fUSD_20250214
["ID","MTS","AMOUNT","RATE_DAILY","PERIOD"]
[353099845,1739562647306,-500.0,0.00013698,2]
[353099846,1739562647316,-1355.18,0.00013698,2]
[353099847,1739562647326,-1610.54,0.00013698,2]
[353099848,1739562647336,-500.0,0.00013698,2]
[353099849,1739562647345,-500.0,0.00013698,2]
[353099850,1739562647355,-502.08381085,0.00013698,2]
[353099851,1739562647364,-777.08,0.00013698,2]
[353099852,1739562647375,-500.0,0.00013698,2]
[353099853,1739562647384,-574.37,0.00013698,2]
[353099854,1739562647395,-500.0,0.00013698,2]
[353099855,1739562647404,-500.0,0.00013698,2]
[353099856,1739562647414,-976.95,0.00013698,2]
[353099857,1739562647424,-500.0,0.00013698,2]
[353099858,1739562647434,-500.0,0.00013698,2]
[353099859,1739562647444,-500.0,0.00013698,2]
[353099860,1739562647454,-500.0,0.00013698,2]
[353099861,1739562647463,-500.0,0.00013698,2]
[353099862,1739562647474,-151.0,0.00013698,2]
[353099863,1739562647485,-151.0,0.00013698,2]
[353099864,1739562647495,-506.09160313,0.00013698,2]
[353099865,1739562647505,-500.0,0.00013698,2]
[353099866,1739562647515,-500.0,0.00013698,2]
[353099867,1739562647525,-500.0,0.00013698,2]
[353099868,1739562647535,-500.0,0.00013698,2]
[353099869,1739562647544,-500.48293445,0.00013698,2]
[353099870,1739562647553,-171.87522409,0.00013698,2]
[353099871,1739562647563,-500.0,0.00013698,2]
[353099872,1739562647573,-522.51232331,0.00013698,2]
[353099873,1739562647583,-501.23770839,0.00013698,2]
[353099874,1739562647592,-593.78,0.00013698,2]
[353099875,1739562647603,-500.0,0.00013698,2]
[353099876,1739562647613,-971.56,0.00013698,2]
[353099877,1739562647623,-500.0,0.00013698,2]
[353099878,1739562647632,-151.0,0.00013698,2]
[353099879,1739562647642,-664.53,0.00013698,2]
[353099880,1739562647652,-500.0,0.00013698,2]
[353099881,1739562647661,-151.0,0.00013698,2]
[353099882,1739562647671,-500.0,0.00013698,2]
[353099883,1739562647681,-508.06760423,0.00013698,2]
[353099884,1739562647691,-500.0,0.00013698,2]
[353099885,1739562647701,-500.0,0.00013698,2]
[353099886,1739562647711,-500.0,0.00013698,2]
[353099887,1739562647721,-500.0,0.00013698,2]
[353099888,1739562647731,-500.0,0.00013698,2]
[353099889,1739562647741,-743.54,0.00013698,2]
[353099890,1739562647751,-500.0,0.00013698,2]
[353099891,1739562647761,-500.0,0.00013698,2]
[353099892,1739562647770,-1428.05,0.00013698,2]
[353099893,1739562647780,-500.0,0.00013698,2]
[353099894,1739562647790,-500.42375783,0.00013698,2]
[353099895,1739562647800,-500.0,0.00013698,2]
[353099896,1739562647809,-500.0,0.00013698,2]
[353099897,1739562647818,-500.0,0.00013698,2]
[353099898,1739562647828,-500.0,0.00013698,2]
[353099899,1739562647837,-500.0,0.00013698,2]
[353099900,1739562647847,-500.0,0.00013698,2]
[353099901,1739562647856,-500.0,0.00013698,2]
[353099902,1739562647866,-500.0,0.00013698,2]
[353099903,1739562647875,-1693.38,0.00013698,2]
[353099904,1739562647884,-500.0,0.00013698,2]
[353099905,1739562647894,-501.58375035,0.00013698,2]
[353099906,1739562647905,-868.98,0.00013698,2]
[353099907,1739562647918,-500.0,0.00013698,2]
[353099908,1739562647927,-500.0,0.00013698,2]
[353099909,1739562647937,-500.0,0.00013698,2]
[353099910,1739562647948,-500.0,0.00013698,2]
[353099911,1739562647957,-500.0,0.00013698,2]
[353099912,1739562647968,-500.0,0.00013698,2]
[353099913,1739562647978,-420.26035452,0.00013698,2]
[353099914,1739562647989,-500.0,0.00013698,2]
[353099915,1739562647999,-519.77871279,0.00013698,2]
[353099916,1739562648008,-500.0,0.00013698,2]
[353099917,1739562648019,-1157.32,0.00013698,2]
[353099918,1739562648028,-500.0,0.00013698,2]
[353099919,1739562648042,-500.0,0.00013698,2]
[353099920,1739562648052,-500.0,0.00013698,2]
[353099921,1739562648062,-500.0,0.00013698,2]
[353099922,1739562648072,-1308.91,0.00013698,2]
[353099923,1739562648082,-500.0,0.00013698,2]
[353099924,1739562648092,-503.34339497,0.00013698,2]
[353099925,1739562648102,-500.0,0.00013698,2]
[353099926,1739562648111,-500.0,0.00013698,2]
[353099927,1739562648121,-500.0,0.00013698,2]
[353099928,1739562648132,-500.0,0.00013698,2]
[353099929,1739562648142,-500.0,0.00013698,2]
[353099930,1739562648152,-500.0,0.00013698,2]
[353099931,1739562648162,-151.0,0.00013698,2]
[353099932,1739562648171,-151.0,0.00013698,2]
[353099933,1739562648181,-500.0,0.00013698,2]
[353099934,1739562648191,-151.0,0.00013698,2]
[353099935,1739562648200,-500.0,0.00013698,2]
[353099936,1739562648210,-870.0,0.00013698,2]
[353099937,1739562648219,-508.27,0.00013698,2]
[353099938,1739562648229,-771.51,0.00013698,2]
[353099939,1739562648239,-801.88,0.00013698,2]
[353099940,1739562648250,-500.0,0.00013698,2]
[353099941,1739562648259,-500.0,0.00013698,2]
[353099942,1739562648269,-500.0,0.00013698,2]
[353099943,1739562648279,-500.97304237,0.00013698,2]
[353099944,1739562648288,-500.0,0.00013698,2]
[353099945,1739562648298,-1014.77,0.00013698,2]
[353099946,1739562648308,-500.0,0.00013698,2]
[353099947,1739562648317,-500.0,0.00013698,2]
[353099948,1739562648327,-500.0,0.00013698,2]
[353099949,1739562648336,-505.00684363,0.00013698,2]
[353099950,1739562648346,-1353.1,0.00013698,2]
[353099951,1739562648355,-925.95,0.00013698,2]
[353099952,1739562648365,-748.82,0.00013698,2]
[353099953,1739562648376,-500.0,0.00013698,2]
[353099954,1739562648386,-705.11,0.00013698,2]
[353099955,1739562648396,-500.0,0.00013698,2]
[353099956,1739562648407,-500.0,0.00013698,2]
[353099957,1739562648418,-521.82,0.00013698,2]
[353099958,1739562648429,-1075.65,0.00013698,2]
[353099959,1739562648439,-1330.32,0.00013698,2]
[353099960,1739562648449,-500.0,0.00013698,2]
[353099961,1739562648459,-502.33757007,0.00013698,2]
[353099962,1739562648469,-500.0,0.00013698,2]
[353099963,1739562648479,-500.67595346,0.00013698,2]
[353099964,1739562648489,-500.0,0.00013698,2]
[353099965,1739562648498,-500.0,0.00013698,2]
[353099966,1739562648509,-500.0,0.00013698,2]
[353099967,1739562648520,-500.0,0.00013698,2]
[353099968,1739562648529,-823.85,0.00013698,2]
[353099969,1739562648539,-500.0,0.00013698,2]
[353099970,1739562648549,-500.0,0.00013698,2]
[353099971,1739562648560,-500.0,0.00013698,2]
[353099972,1739562648569,-679.24,0.00013698,2]
[353099973,1739562648579,-500.0,0.00013698,2]
[353099974,1739562648589,-501.43042785,0.00013698,2]
[353099975,1739562648598,-500.0,0.00013698,2]
[353099976,1739562648608,-605.01,0.00013698,2]
[353099977,1739562648617,-500.0,0.00013698,2]
[353099978,1739562648626,-500.0,0.00013698,2]
[353099979,1739562648636,-500.0,0.00013698,2]
[353099980,1739562648646,-500.0,0.00013698,2]
[353099981,1739562648655,-500.0,0.00013698,2]
[353099982,1739562648666,-500.0,0.00013698,2]
[353099983,1739562648676,-500.0,0.00013698,2]
[353099984,1739562648685,-501.77256258,0.00013698,2]
[353099985,1739562648695,-500.0,0.00013698,2]
[353099986,1739562648705,-855.34,0.00013698,2]
[353099987,1739562648714,-500.0,0.00013698,2]
[353099988,1739562648725,-500.0,0.00013698,2]
[353099989,1739562648735,-1139.63,0.00013698,2]
[353099990,1739562648744,-515.03282116,0.00013698,2]
[353099991,1739562648754,-500.0,0.00013698,2]
[353099992,1739562648763,-500.0,0.00013698,2]
[353099993,1739562648772,-646.14,0.00013698,2]
[353099994,1739562648782,-500.0,0.00013698,2]
[353099995,1739562648791,-332.01312797,0.00013698,2]
[353099996,1739562648800,-500.0,0.00013698,2]
[353099997,1739562648809,-500.0,0.00013698,2]
[353099998,1739562648818,-500.0,0.00013698,2]
[353099999,1739562648828,-500.0,0.00013698,2]
[353100000,1739562648837,-500.0,0.00013698,2]
[353100001,1739562648847,-500.0,0.00013698,2]
[353100002,1739562648858,-500.0,0.00013698,2]
[353100003,1739562648868,-563.26,0.00013698,2]
[353100004,1739562648878,-657.84,0.00013698,2]
[353100005,1739562648889,-500.0,0.00013698,2]
[353100006,1739562648901,-500.0,0.00013698,2]
[353100007,1739562648914,-646.83516048,0.00013698,2]
[353100008,1739562648924,-502.11757304,0.00013698,2]
[353100009,1739562648935,-500.0,0.00013698,2]
[353100010,1739562648945,-883.37,0.00013698,2]
[353100011,1739562648955,-502.25157566,0.00013698,2]
[353100012,1739562648965,-500.0,0.00013698,2]
[353100013,1739562648975,-500.0,0.00013698,2]
[353100014,1739562648986,-500.0,0.00013698,2]
[353100015,1739562648996,-500.0,0.00013698,2]
[353100016,1739562649006,-500.0,0.00013698,2]
[353100017,1739562649016,-500.0,0.00013698,2]
[353100018,1739562649027,-597.03,0.00013698,2]
[353100019,1739562649037,-597.03,0.00013698,2]
[353100020,1739562649047,-500.0,0.00013698,2]
[353100021,1739562649058,-597.03,0.00013698,2]
[353100022,1739562649068,-500.0,0.00013698,2]
[353100023,1739562649079,-597.03,0.00013698,2]
[353100024,1739562649089,-500.0,0.00013698,2]
[353100025,1739562649099,-1696.12,0.00013698,2]
[353100026,1739562649108,-597.03,0.00013698,2]
[353100027,1739562649119,-500.0,0.00013698,2]
[353100028,1739562649129,-597.03,0.00013698,2]
[353100029,1739562649139,-597.03,0.00013698,2]
[353100030,1739562649149,-597.03,0.00013698,2]
[353100031,1739562649159,-1749.6,0.00013698,2]
[353100032,1739562649169,-597.03,0.00013698,2]
[353100033,1739562649179,-597.03,0.00013698,2]
[353100034,1739562649190,-597.03,0.00013698,2]
[353100035,1739562649199,-500.0,0.00013698,2]
[353100036,1739562649209,-597.03,0.00013698,2]
[353100037,1739562649219,-504.38310905,0.00013698,2]
[353100038,1739562649228,-500.0,0.00013698,2]
[353100039,1739562649239,-1098.61,0.00013698,2]
[353100040,1739562649249,-597.03,0.00013698,2]
[353100041,1739562649259,-500.0,0.00013698,2]
[353100042,1739562649269,-500.0,0.00013698,2]
[353100043,1739562649279,-500.73622998,0.00013698,2]
[353100044,1739562649290,-507.82,0.00013698,2]
[353100045,1739562649300,-500.0,0.00013698,2]
[353100046,1739562649309,-511.51689646,0.00013698,2]
[353100047,1739562649319,-500.0,0.00013698,2]
[353100048,1739562649330,-1030.08,0.00013698,2]
[353100049,1739562649340,-500.0,0.00013698,2]
[353100050,1739562649350,-500.0,0.00013698,2]
[353100051,1739562649360,-503.13272392,0.00013698,2]
[353100052,1739562649371,-1239.86,0.00013698,2]
[353100053,1739562649381,-500.0,0.00013698,2]
[353100054,1739562649392,-500.0,0.00013698,2]
[353100055,1739562649402,-500.0,0.00013698,2]
[353100056,1739562649412,-564.04,0.00013698,2]
[353100057,1739562649422,-806.18,0.00013698,2]
[353100058,1739562649433,-500.0,0.00013698,2]
[353100059,1739562649443,-838.09,0.00013698,2]
[353100060,1739562649453,-500.0,0.00013698,2]
[353100061,1739562649464,-500.0,0.00013698,2]
[353100062,1739562649474,-500.0,0.00013698,2]
[353100063,1739562649484,-500.0,0.00013698,2]
[353100064,1739562649495,-500.0,0.00013698,2]
[353100065,1739562649506,-683.79,0.00013698,2]
[353100066,1739562649517,-500.0,0.00013698,2]
[353100067,1739562649528,-500.0,0.00013698,2]
[353100068,1739562649538,-706.12,0.00013698,2]
[353100069,1739562649549,-500.0,0.00013698,2]
[353100070,1739562649559,-492.61522067,0.00013698,2]
[353100071,1739562649568,-500.0,0.00013698,2]
[353100072,1739562649578,-504.18789153,0.00013698,2]
[353100073,1739562649587,-518.44535449,0.00013698,2]
[353100074,1739562649813,-897.05,0.00013698,2]
[353100075,1739562649824,-1669.07,0.00013698,2]
[353100076,1739562649834,-1508.12,0.00013698,2]
[353100077,1739562649843,-500.0,0.00013698,2]
[353100078,1739562649853,-500.0,0.00013698,2]
[353100079,1739562649862,-500.57634773,0.00013698,2]
[353100080,1739562649872,-500.0,0.00013698,2]
[353100081,1739562649882,-500.0,0.00013698,2]
[353100082,1739562649892,-501.94429628,0.00013698,2]
[353100083,1739562649902,-500.0,0.00013698,2]
[353100084,1739562649916,-500.0,0.00013698,2]
[353100085,1739562649926,-500.0,0.00013698,2]
[353100086,1739562649936,-711.17,0.00013698,2]
[353100087,1739562649946,-500.0,0.00013698,2]
[353100088,1739562649956,-500.0,0.00013698,2]
[353100089,1739562649965,-500.0,0.00013698,2]
[353100090,1739562649975,-502.20120995,0.00013698,2]
[353100091,1739562649986,-500.0,0.00013698,2]
[353100092,1739562649995,-1736.71,0.00013698,2]
[353100093,1739562650005,-1534.42,0.00013698,2]
[353100094,1739562650015,-500.0,0.00013698,2]
[353100095,1739562650024,-863.93,0.00013698,2]
[353100096,1739562650034,-649.16841621,0.00013698,2]
[353100097,1739562650044,-1043.93,0.00013698,2]
[353100098,1739562650053,-502.65087223,0.00013698,2]
[353100099,1739562650063,-500.0,0.00013698,2]
[353100100,1739562650072,-508.60125787,0.00013698,2]
[353100101,1739562650082,-500.75305869,0.00013698,2]
[353100102,1739562650091,-500.0,0.00013698,2]
[353100103,1739562650101,-500.0,0.00013698,2]
[353100104,1739562650110,-500.0,0.00013698,2]
[353100105,1739562650119,-500.0,0.00013698,2]
[353100106,1739562650129,-500.0,0.00013698,2]
[353100107,1739562650138,-500.0,0.00013698,2]
[353100108,1739562650148,-500.0,0.00013698,2]
[353100109,1739562650157,-500.0,0.00013698,2]
[353100110,1739562650167,-1176.07,0.00013698,2]
[353100111,1739562650176,-151.0,0.00013698,2]
[353100112,1739562650186,-151.0,0.00013698,2]
[353100113,1739562650196,-151.0,0.00013698,2]
[353100114,1739562650205,-500.0,0.00013698,2]
[353100115,1739562650215,-1588.84,0.00013698,2]
[353100116,1739562650224,-500.0,0.00013698,2]
[353100117,1739562650235,-1112.48,0.00013698,2]
[353100118,1739562650245,-500.0,0.00013698,2]
[353100119,1739562650255,-500.0,0.00013698,2]
[353100120,1739562650264,-500.0,0.00013698,2]
[353100121,1739562650273,-500.0,0.00013698,2]
[353100122,1739562650283,-500.0,0.00013698,2]
[353100123,1739562650293,-500.0,0.00013698,2]
[353100124,1739562650302,-500.0,0.00013698,2]
[353100125,1739562650311,-1088.38,0.00013698,2]
[353100126,1739562650321,-151.0,0.00013698,2]
[353100127,1739562650331,-151.0,0.00013698,2]
[353100128,1739562650341,-151.825269,0.00013698,2]
[353100129,1739562650350,-500.0,0.00013698,2]
[353100130,1739562650360,-5237.55,0.00013698,2]
[353100131,1739562650370,-502.47907483,0.00013698,2]
[353100132,1739562650379,-500.0,0.00013698,2]
[353100133,1739562650389,-1576.47,0.00013698,2]
[353100134,1739562650398,-500.0,0.00013698,2]
[353100135,1739562650408,-500.0,0.00013698,2]
[353100136,1739562650419,-500.0,0.00013698,2]
[353100137,1739562650428,-500.0,0.00013698,2]
[353100138,1739562650437,-1022.12,0.00013698,2]
[353100139,1739562650447,-869.06,0.00013698,2]
[353100140,1739562650458,-500.0,0.00013698,2]
[353100141,1739562650467,-500.0,0.00013698,2]
[353100142,1739562650477,-580.79,0.00013698,2]
[353100143,1739562650487,-531.38376546,0.00013698,2]
[353100144,1739562650497,-500.0,0.00013698,2]
[353100145,1739562650507,-500.0,0.00013698,2]
[353100146,1739562650517,-500.0,0.00013698,2]
[353100147,1739562650527,-791.23,0.00013698,2]
[353100148,1739562650538,-569.88,0.00013698,2]
[353100149,1739562650548,-500.0,0.00013698,2]
[353100150,1739562650558,-504.11446703,0.00013698,2]
[353100151,1739562650567,-500.0,0.00013698,2]
[353100152,1739562650577,-500.0,0.00013698,2]
[353100153,1739562650586,-500.0,0.00013698,2]
[353100154,1739562650595,-500.0,0.00013698,2]
[353100155,1739562650605,-1129.3,0.00013698,2]
[353100156,1739562650614,-500.0,0.00013698,2]
[353100157,1739562650624,-500.0,0.00013698,2]
[353100158,1739562650633,-151.0,0.00013698,2]
[353100159,1739562650643,-3307.39,0.00013698,2]
[353100160,1739562650652,-151.0,0.00013698,2]
[353100161,1739562650661,-151.0,0.00013698,2]
[353100162,1739562650670,-629.38,0.00013698,2]
[353100163,1739562650680,-500.0,0.00013698,2]
[353100164,1739562650689,-500.0,0.00013698,2]
[353100165,1739562650698,-500.0,0.00013698,2]
[353100166,1739562650708,-500.0,0.00013698,2]
[353100167,1739562650717,-500.0,0.00013698,2]
[353100168,1739562650726,-4755.22,0.00013698,2]
[353100169,1739562650735,-500.0,0.00013698,2]
[353100170,1739562650744,-500.0,0.00013698,2]
[353100171,1739562650754,-500.0,0.00013698,2]
[353100172,1739562650764,-544.82,0.00013698,2]
[353100173,1739562650774,-603.031188,0.00013698,2]
[353100174,1739562650784,-500.0,0.00013698,2]
[353100175,1739562650793,-1208.91,0.00013698,2]
[353100176,1739562650804,-888.91,0.00013698,2]
[353100177,1739562650814,-500.0,0.00013698,2]
[353100178,1739562650825,-517.6,0.00013698,2]
[353100179,1739562650835,-500.0,0.00013698,2]
[353100180,1739562650844,-500.0,0.00013698,2]
[353100181,1739562650854,-1313.35,0.00013698,2]
[353100182,1739562650863,-500.0,0.00013698,2]
[353100183,1739562650873,-500.0,0.00013698,2]
[353100184,1739562650882,-500.0,0.00013698,2]
[353100185,1739562650891,-2286.11,0.00013698,2]
[353100186,1739562650902,-2861.41,0.00013698,2]
[353100187,1739562650915,-602.31406637,0.00013698,2]
[353100188,1739562650924,-500.0,0.00013698,2]
[353100189,1739562650934,-3067.22,0.00013698,2]
[353100190,1739562650943,-500.0,0.00013698,2]
[353100191,1739562650954,-417.94825289,0.00013698,2]
[353100192,1739562650964,-500.0,0.00013698,2]
[353100193,1739562650974,-500.0,0.00013698,2]
[353100194,1739562650983,-500.0,0.00013698,2]
[353100195,1739562650994,-500.0,0.00013698,2]
[353100196,1739562651003,-1108.64,0.00013698,2]
[353100197,1739562651012,-2054.2,0.00013698,2]
[353100198,1739562651023,-500.0,0.00013698,2]
[353100199,1739562651034,-1680.26,0.00013698,2]
[353100200,1739562651045,-500.0,0.00013698,2]
[353100201,1739562651055,-500.0,0.00013698,2]
[353100202,1739562651064,-500.0,0.00013698,2]
[353100203,1739562651074,-1857.43,0.00013698,2]
[353100204,1739562651083,-500.0,0.00013698,2]
[353100205,1739562651093,-500.0,0.00013698,2]
[353100206,1739562651102,-500.0,0.00013698,2]
[353100207,1739562651112,-500.0,0.00013698,2]
[353100208,1739562651121,-2261.23,0.00013698,2]
[353100209,1739562651131,-500.0,0.00013698,2]
[353100210,1739562651140,-500.0,0.00013698,2]
[353100211,1739562651150,-624.51122506,0.00013698,2]
[353100212,1739562651166,-614.069016,0.00013698,2]
[353100213,1739562651176,-500.0,0.00013698,2]
[353100214,1739562651186,-651.92,0.00013698,2]
[353100215,1739562651196,-500.0,0.00013698,2]
[353100216,1739562651206,-1283.97,0.00013698,2]
[353100217,1739562651217,-500.0,0.00013698,2]
[353100218,1739562651227,-500.0,0.00013698,2]
[353100219,1739562651237,-501.88425031,0.00013698,2]
[353100220,1739562651248,-682.12,0.00013698,2]
[353100221,1739562651258,-500.0,0.00013698,2]
[353100222,1739562651268,-500.0,0.00013698,2]
[353100223,1739562651279,-2640.55,0.00013698,2]
[353100224,1739562651290,-500.0,0.00013698,2]
[353100225,1739562651300,-534.47615633,0.00013698,2]
[353100226,1739562651310,-500.0,0.00013698,2]
[353100227,1739562651320,-922.92,0.00013698,2]
[353100228,1739562651330,-3989.15,0.00013698,2]
[353100229,1739562651340,-4024.68,0.00013698,2]
[353100230,1739562651350,-500.73693359,0.00013698,2]
[353100231,1739562651360,-500.0,0.00013698,2]
[353100232,1739562651370,-1259.62,0.00013698,2]
[353100233,1739562651381,-505.54090706,0.00013698,2]
[353100234,1739562651391,-3447.07,0.00013698,2]
[353100235,1739562651402,-500.0,0.00013698,2]
[353100236,1739562651412,-500.0,0.00013698,2]
[353100237,1739562651423,-793.09,0.00013698,2]
[353100238,1739562651434,-500.0,0.00013698,2]
[353100239,1739562651445,-1917.12,0.00013698,2]
[353100240,1739562651455,-500.0,0.00013698,2]
[353100241,1739562651465,-2968.75,0.00013698,2]
[353100242,1739562651476,-3462.99,0.00013698,2]
[353100243,1739562651487,-500.0,0.00013698,2]
[353100244,1739562651496,-500.0,0.00013698,2]
[353100245,1739562651506,-500.0,0.00013698,2]
[353100246,1739562651516,-452.99888215,0.00013698,2]
[353100247,1739562651526,-500.0,0.00013698,2]
[353100248,1739562651536,-646.49688288,0.00013698,2]
[353100249,1739562651546,-921.57,0.00013698,2]
[353100250,1739562651557,-500.0,0.00013698,2]
[353100251,1739562651567,-500.0,0.00013698,2]
[353100252,1739562651577,-2006.39,0.00013698,2]
[353100253,1739562651587,-500.0,0.00013698,2]
[353100254,1739562651597,-500.0,0.00013698,2]
[353100255,1739562651607,-500.0,0.00013698,2]
[353100256,1739562651617,-500.0,0.00013698,2]
[353100257,1739562651628,-500.0,0.00013698,2]
[353100258,1739562651639,-500.0,0.00013698,2]
[353100259,1739562651649,-500.0,0.00013698,2]
[353100260,1739562651659,-1213.3,0.00013698,2]
[353100261,1739562651675,-500.0,0.00013698,2]
[353100262,1739562651686,-623.1,0.00013698,2]
[353100263,1739562651695,-500.0,0.00013698,2]
[353100264,1739562651706,-500.0,0.00013698,2]
[353100265,1739562651715,-500.0,0.00013698,2]
[353100266,1739562651725,-500.0,0.00013698,2]
[353100267,1739562651735,-4663.42,0.00013698,2]
[353100268,1739562651746,-500.0,0.00013698,2]
[353100269,1739562651756,-500.0,0.00013698,2]
[353100270,1739562651766,-2043.51,0.00013698,2]
[353100271,1739562651777,-500.0,0.00013698,2]
[353100272,1739562651787,-500.0,0.00013698,2]
[353100273,1739562651797,-1975.3,0.00013698,2]
[353100274,1739562651807,-2037.91,0.00013698,2]
[353100275,1739562651817,-770.4,0.00013698,2]
[353100276,1739562651827,-1784.97,0.00013698,2]
[353100277,1739562651839,-1284.45,0.00013698,2]
[353100278,1739562651849,-2395.89,0.00013698,2]
[353100279,1739562651860,-151.0,0.00013698,2]
[353100280,1739562651871,-500.0,0.00013698,2]
[353100281,1739562651883,-151.0,0.00013698,2]
[353100282,1739562651893,-500.0,0.00013698,2]
[353100283,1739562651903,-151.0,0.00013698,2]
[353100284,1739562651919,-500.0,0.00013698,2]
[353100285,1739562651929,-500.0,0.00013698,2]
[353100286,1739562651940,-2642.37,0.00013698,2]
[353100287,1739562651951,-500.0,0.00013698,2]
[353100288,1739562651962,-502.04934533,0.00013698,2]
[353100289,1739562651973,-2224.27,0.00013698,2]
[353100290,1739562651983,-500.0,0.00013698,2]
[353100291,1739562651993,-500.0,0.00013698,2]
[353100292,1739562652003,-500.0,0.00013698,2]
[353100293,1739562652013,-500.0,0.00013698,2]
[353100294,1739562652023,-500.0,0.00013698,2]
[353100295,1739562652033,-3102.78,0.00013698,2]
[353100296,1739562652043,-500.0,0.00013698,2]
[353100297,1739562652053,-500.0,0.00013698,2]
[353100298,1739562652063,-500.0,0.00013698,2]
[353100299,1739562652073,-500.0,0.00013698,2]
[353100300,1739562652083,-500.0,0.00013698,2]
[353100301,1739562652099,-151.0,0.00013698,2]
[353100302,1739562652108,-500.0,0.00013698,2]
[353100303,1739562652119,-2832.1,0.00013698,2]
[353100304,1739562652129,-151.0,0.00013698,2]
[353100305,1739562652139,-2004.07,0.00013698,2]
[353100306,1739562652150,-151.0,0.00013698,2]
[353100307,1739562652160,-4488.85,0.00013698,2]
[353100308,1739562652170,-307.40305978,0.00013698,2]
[353100309,1739562652180,-500.0,0.00013698,2]
[353100310,1739562652194,-631.03,0.00013698,2]
[353100311,1739562652203,-649.86,0.00013698,2]
[353100312,1739562652213,-500.0,0.00013698,2]
[353100313,1739562652223,-628.793465,0.00013698,2]
[353100314,1739562652232,-227.64183776,0.00013698,2]
[353100315,1739562652243,-151.0,0.00013698,2]
[353100316,1739562652253,-1196.04,0.00013698,2]
[353100317,1739562652263,-151.0,0.00013698,2]
[353100318,1739562652273,-151.0,0.00013698,2]
[353100319,1739562652283,-545.20102102,0.00013698,2]
[353100320,1739562652292,-151.0,0.00013698,2]
[353100321,1739562652303,-151.0,0.00013698,2]
[353100322,1739562652313,-1439.45,0.00013698,2]
[353100323,1739562652324,-151.0,0.00013698,2]
[353100324,1739562652334,-500.0,0.00013698,2]
[353100325,1739562652343,-410.59953708,0.00013698,2]
[353100326,1739562652354,-500.0,0.00013698,2]
[353100327,1739562652364,-2289.37,0.00013698,2]
[353100328,1739562652374,-500.0,0.00013698,2]
[353100329,1739562652385,-4255.5,0.00013698,2]
[353100330,1739562652394,-500.0,0.00013698,2]
[353100331,1739562652404,-500.0,0.00013698,2]
[353100332,1739562652414,-1267.72,0.00013698,2]
[353100333,1739562652424,-630.99,0.00013698,2]
[353100334,1739562652434,-497.86950681,0.00013698,2]
[353100335,1739562652444,-500.0,0.00013698,2]
[353100336,1739562652454,-781.66,0.00013698,2]
[353100337,1739562652464,-1304.83,0.00013698,2]
[353100338,1739562652473,-1304.83,0.00013698,2]
[353100339,1739562652483,-1304.83,0.00013698,2]
[353100340,1739562652493,-1304.83,0.00013698,2]
[353100341,1739562652504,-1304.83,0.00013698,2]
[353100342,1739562652514,-504.3442041,0.00013698,2]
[353100343,1739562652525,-1304.83,0.00013698,2]
[353100344,1739562652534,-1304.83,0.00013698,2]